bitfinex/quotes_BTCUSD_20241116
["timestamp","ask_amount","ask_price","bid_price","bid_amount"]
[1731720381412,0.25946255,91300.0,91299.0,0.1112444]
[1731720381648,0.25946255,91300.0,91299.0,0.0017144]
[1731720382761,0.25946255,91300.0,91299.0,0.1112444]
[1731720383238,0.25876255,91300.0,91299.0,0.1112444]
[1731720383984,0.1267,91300.0,91299.0,0.1112444]
[1731720384187,0.1275572,91300.0,91299.0,0.1112444]
[1731720385427,0.1505572,91300.0,91299.0,0.1112444]
[1731720387233,0.14838027,91300.0,91299.0,0.1112444]
[1731720388311,0.14838027,91300.0,91299.0,0.13302789]
[1731720390909,0.14838027,91300.0,91299.0,0.1112444]
[1731720391115,0.25814282,91300.0,91299.0,0.0017144]
[1731720392529,0.25814282,91300.0,91299.0,0.1112444]
[1731720393376,0.0008572,91300.0,91299.0,0.1112444]
[1731720396093,0.0008572,91300.0,91299.0,0.1105444]
[1731720398176,0.24314875,91300.0,91299.0,0.0010144]
[1731720398397,0.24314875,91300.0,91299.0,0.1105444]
[1731720398398,0.0693572,91300.0,91299.0,0.1105444]
[1731720399066,0.08860834,91300.0,91299.0,0.1105444]
[1731720401912,0.19837221,91300.0,91299.0,0.1105444]
[1731720403449,0.19006583,91300.0,91299.0,0.1105444]
[1731720403785,0.17911975,91300.0,91299.0,0.1105444]
[1731720404245,0.17841975,91300.0,91299.0,0.1105444]
[1731720404443,0.0693572,91300.0,91299.0,0.1105444]
[1731720404693,0.0008572,91300.0,91299.0,0.1105444]
[1731720414101,0.03480317,91300.0,91299.0,0.1105444]
[1731720418674,0.0008572,91300.0,91299.0,0.1105444]
[1731720422249,0.0008572,91300.0,91299.0,0.20826255]
[1731720422467,0.0008572,91300.0,91299.0,0.1105444]
[1731720423597,0.0008572,91300.0,91299.0,0.2105444]
[1731720423812,0.0008572,91300.0,91299.0,0.35207016]
[1731720423941,0.0008572,91300.0,91299.0,0.25435201]
[1731720424353,0.0008572,91300.0,91299.0,0.44978831]
[1731720424555,0.0008572,91300.0,91299.0,0.27610099]
[1731720424783,0.0008572,91300.0,91299.0,0.42255847]
[1731720425063,0.0008572,91300.0,91299.0,0.27610099]
[1731720426891,0.0008572,91300.0,91299.0,0.37373905]
[1731720427236,0.0008572,91300.0,91299.0,0.27610099]
[1731720430018,0.0008572,91300.0,91299.0,0.42255236]
[1731720430232,0.0008572,91300.0,91299.0,0.27610099]
[1731720430387,0.0008572,91300.0,91299.0,0.42253216]
[1731720431225,0.0008572,91300.0,91299.0,0.42252898]
[1731720432546,0.0008572,91300.0,91299.0,0.28040099]
[1731720432758,0.0008572,91300.0,91299.0,0.42682898]
[1731720432971,0.0008572,91300.0,91299.0,0.28040099]
[1731720433186,0.0008572,91300.0,91299.0,0.42680157]
[1731720433396,0.0008572,91300.0,91299.0,0.61626412]
[1731720433596,0.0008572,91300.0,91299.0,0.71395971]
[1731720433806,0.0008572,91300.0,91299.0,0.46986354]
[1731720434001,0.0008572,91300.0,91299.0,0.50236691]
[1731720435335,0.0008572,91300.0,91299.0,0.79480643]
[1731720435633,0.0008572,91300.0,91299.0,0.8459947]
[1731720435976,0.0008572,91300.0,91299.0,0.50236691]
[1731720436402,0.0008572,91300.0,91299.0,0.8459947]
[1731720436852,0.0008572,91300.0,91299.0,0.50236691]
[1731720438297,2e-07,91300.0,91299.0,0.50236691]
[1731720438561,0.16440698,91335.0,91325.0,0.0063]
[1731720438762,0.16440698,91335.0,91334.0,0.109488]
[1731720439469,0.0485562,91342.0,91341.0,0.109479]
[1731720439878,0.0715562,91342.0,91341.0,0.109479]
[1731720443251,0.023,91341.0,91335.0,0.218974]
[1731720443457,0.023,91341.0,91340.0,0.109481]
[1731720451870,0.0238572,91341.0,91340.0,0.109481]
[1731720461830,0.0008572,91341.0,91340.0,0.109481]
[1731720479835,0.0008572,91341.0,91340.0,0.49778474]
[1731720480064,0.0008572,91341.0,91340.0,0.43302965]
[1731720481314,1e-06,91366.0,91365.0,0.213751]
[1731720481515,0.17771598,91378.0,91377.0,0.113736]
[1731720481516,0.16440698,91378.0,91377.0,0.113736]
[1731720481768,0.16440698,91378.0,91377.0,0.41789604]
[1731720481769,0.17124227,91378.0,91377.0,0.41789604]
[1731720481982,0.0017122,91379.0,91377.0,0.41789604]
[1731720481983,0.0017122,91379.0,91378.0,0.113735]
[1731720482193,0.00854743,91379.0,91378.0,0.22279755]
[1731720482640,0.00854743,91379.0,91378.0,0.109435]
[1731720483281,0.0811,91382.0,91378.0,0.109435]
[1731720483282,0.06964743,91382.0,91381.0,0.109431]
[1731720484349,1.6e-07,91387.0,91386.0,0.213725]
[1731720484510,7e-05,91397.0,91386.0,0.213725]
[1731720484511,7e-05,91397.0,91391.0,0.290919]
[1731720484709,0.16440698,91413.0,91391.0,0.290919]
[1731720484710,0.16440698,91413.0,91412.0,0.109394]
[1731720485127,0.0468,91422.0,91421.0,0.109384]
[1731720485362,0.0007,91429.0,91428.0,0.109375]
[1731720485614,0.0007,91429.0,91411.0,0.0043]
[1731720485615,0.005,91432.0,91411.0,0.005]
[1731720485819,0.005,91432.0,91431.0,0.109372]
[1731720486239,0.11406255,91432.0,91431.0,0.109372]
[1731720486462,0.11406255,91432.0,91423.0,0.218763]
[1731720486684,0.11406255,91432.0,91424.0,0.16440698]
[1731720486911,0.11491935,91432.0,91428.0,0.109374]
[1731720487124,0.11491935,91432.0,91429.0,0.109374]
[1731720487336,0.10906255,91431.0,91412.0,0.218787]
[1731720487545,0.184477,91427.0,91419.0,0.16440698]
[1731720487758,0.21844055,91426.0,91421.0,0.109383]
[1731720487986,0.023,91425.0,91411.0,0.218792]
[1731720488185,0.023,91425.0,91423.0,0.109381]
[1731720488452,0.0751,91427.0,91426.0,0.109378]
[1731720491362,0.0008568,91432.0,91431.0,0.109372]
[1731720491363,0.0238568,91432.0,91431.0,0.109372]
[1731720492319,0.0008568,91432.0,91431.0,0.109372]
[1731720493215,0.0008568,91432.0,91427.0,0.218751]
[1731720493421,0.0008568,91432.0,91429.0,0.109373]
[1731720493620,0.0008568,91432.0,91427.0,0.218751]
[1731720493621,0.0008568,91432.0,91430.0,0.109373]
[1731720495568,0.0008568,91432.0,91418.0,0.218775]
[1731720495796,0.0008568,91432.0,91425.0,0.38316498]
[1731720496009,0.0008568,91432.0,91427.0,0.109376]
[1731720496185,0.0008568,91432.0,91411.0,0.04852398]
[1731720496388,0.0008568,91432.0,91431.0,0.109372]
[1731720497857,0.0008568,91432.0,91426.0,0.218755]
[1731720498085,0.0008568,91432.0,91423.0,0.16440698]
[1731720498305,0.0008568,91432.0,91427.0,0.109376]
[1731720498929,0.0008568,91432.0,91425.0,0.109379]
[1731720498930,0.109372,91431.0,91425.0,0.109379]
[1731720499156,0.0008568,91432.0,91423.0,0.16440698]
[1731720499611,0.0008568,91432.0,91428.0,0.109375]
[1731720500625,0.0008568,91432.0,91427.0,0.109376]
[1731720501325,0.0068317,91431.0,91425.0,0.218758]
[1731720501528,0.1102278,91432.0,91421.0,0.218767]
[1731720501529,0.0496,91428.0,91421.0,0.109383]
[1731720501741,0.0068317,91427.0,91412.0,0.218789]
[1731720501862,0.0068317,91426.0,91425.0,0.109379]
[1731720505340,0.0008568,91432.0,91421.0,0.437533]
[1731720505493,0.0008568,91432.0,91419.0,0.005]
[1731720505494,0.0008568,91432.0,91431.0,0.109372]
[1731720505689,0.00768818,91432.0,91431.0,0.109372]
[1731720508285,0.01595206,91432.0,91431.0,0.109372]
[1731720508523,0.04285184,91432.0,91431.0,0.109372]
[1731720508733,0.04285184,91432.0,91419.0,0.26207147]
[1731720508935,0.04199504,91431.0,91424.0,0.16440698]
[1731720509151,0.0008568,91432.0,91424.0,0.16440698]
[1731720509363,0.0008568,91432.0,91431.0,0.109372]
[1731720509574,0.04289601,91432.0,91431.0,0.109372]
[1731720510579,0.02923262,91432.0,91431.0,0.109372]
[1731720514154,0.00768849,91432.0,91431.0,0.109372]
[1731720514360,0.02927827,91432.0,91431.0,0.109372]
[1731720514721,0.02930614,91432.0,91431.0,0.109372]
[1731720514894,0.0008568,91432.0,91431.0,0.109372]
[1731720515913,0.00768833,91432.0,91431.0,0.109372]
[1731720516114,0.02930796,91432.0,91431.0,0.109372]
[1731720517869,0.02930998,91432.0,91431.0,0.109372]
[1731720520908,0.02930998,91432.0,91429.0,0.0017144]
[1731720521120,0.0008568,91432.0,91431.0,0.109372]
[1731720521332,0.02931665,91432.0,91431.0,0.109372]
[1731720523452,0.02931665,91432.0,91431.0,0.187372]
[1731720523884,0.02931665,91432.0,91431.0,0.109372]
[1731720524995,0.02931501,91432.0,91431.0,0.109372]
[1731720525397,0.00917482,91432.0,91431.0,0.109372]
[1731720525629,0.00917458,91432.0,91431.0,0.15392331]
[1731720525847,0.01600587,91432.0,91431.0,0.15392331]
[1731720526230,0.01600586,91432.0,91431.0,0.15392331]
[1731720526404,0.01600586,91432.0,91431.0,0.109372]
[1731720529028,0.01600537,91432.0,91431.0,0.109372]
[1731720529228,0.00768809,91432.0,91431.0,0.109372]
[1731720529439,0.0008568,91432.0,91431.0,0.109372]
[1731720530955,0.0008568,91432.0,91430.0,0.109372]
[1731720531488,0.0008568,91432.0,91429.0,0.0017144]
[1731720531635,0.0008568,91432.0,91430.0,0.109373]
[1731720531838,0.0482,91431.0,91429.0,0.0017144]
[1731720532072,0.12452192,91430.0,91429.0,0.0017144]
[1731720532448,0.12452257,91430.0,91429.0,0.0017144]
[1731720534843,0.48304543,91430.0,91429.0,0.0017144]
[1731720535050,0.58119752,91430.0,91429.0,0.0017144]
[1731720535332,0.48304543,91430.0,91429.0,0.0017144]
[1731720535467,0.58132522,91430.0,91429.0,0.0017144]
[1731720535667,0.48304543,91430.0,91429.0,0.0017144]
[1731720536396,0.38538592,91430.0,91429.0,0.0017144]
[1731720539702,0.38537628,91430.0,91429.0,0.0017144]
[1731720541000,0.023,91427.0,91411.0,0.16440698]
[1731720541183,0.0482,91414.0,91411.0,0.16440698]
[1731720541405,0.0482,91414.0,91406.0,0.16440698]
[1731720541406,0.218787,91413.0,91406.0,0.16440698]
[1731720541725,0.1288,91414.0,91406.0,0.16440698]
[1731720542019,0.109397,91410.0,91406.0,0.16440698]
[1731720542307,0.109397,91410.0,91397.0,0.04485008]
[1731720542638,0.109397,91410.0,91405.0,0.109402]
[1731720542851,0.328184,91412.0,91405.0,0.109402]
[1731720543057,0.218789,91412.0,91396.0,0.1]
[1731720543260,0.23786255,91414.0,91396.0,0.1]
[1731720543261,0.109399,91409.0,91398.0,0.218823]
[1731720543470,0.109399,91409.0,91403.0,0.109405]
[1731720543860,0.109399,91409.0,91404.0,0.109403]
[1731720544134,0.16440698,91413.0,91393.0,0.16440698]
[1731720544335,0.0806,91406.0,91393.0,0.16440698]
[1731720544549,0.10906255,91405.0,91393.0,0.16440698]
[1731720544765,0.10906255,91405.0,91394.0,0.109416]
[1731720544967,0.218813,91402.0,91393.0,0.16440698]
[1731720545176,0.109416,91395.0,91387.0,0.109423]
[1731720545378,0.0482,91394.0,91383.0,0.38326498]
[1731720545592,0.0482,91394.0,91391.0,0.109419]
[1731720545808,0.0482,91394.0,91388.0,0.218845]
[1731720546004,0.0482,91394.0,91384.0,0.109428]
[1731720546220,0.109418,91393.0,91383.0,0.04452251]
[1731720546445,0.0753,91393.0,91383.0,0.328288]
[1731720546668,0.109419,91392.0,91383.0,0.328288]
[1731720546882,0.10942,91391.0,91386.0,0.109425]
[1731720547046,0.184717,91393.0,91388.0,0.109422]
[1731720547247,0.0753,91393.0,91381.0,0.218862]
[1731720547455,0.0753,91393.0,91379.0,0.0114214]
[1731720547456,0.18436255,91393.0,91379.0,0.0114214]
[1731720547677,0.18436255,91393.0,91370.0,0.220601]
[1731720547678,0.109435,91378.0,91373.0,0.10944]
[1731720548013,0.0493,91378.0,91374.0,0.109439]
[1731720548226,0.184737,91377.0,91370.0,0.001713]
[1731720548436,0.0753,91377.0,91370.0,0.001713]
[1731720548868,0.0753,91377.0,91374.0,0.109439]
[1731720549078,0.220843,91390.0,91370.0,0.220601]
[1731720549079,0.0493,91386.0,91370.0,0.001713]
[1731720549279,0.16440698,91384.0,91370.0,0.079413]
[1731720549489,0.27383498,91384.0,91377.0,0.109436]
[1731720549654,0.27383498,91384.0,91371.0,0.218887]
[1731720549655,0.27383498,91384.0,91373.0,0.218883]
[1731720549829,0.218859,91383.0,91370.0,0.001713]
[1731720550035,0.16440698,91384.0,91370.0,0.001713]
[1731720550240,0.15836255,91386.0,91375.0,0.109438]
[1731720550241,0.109432,91381.0,91375.0,0.109438]
[1731720550476,0.38326098,91385.0,91372.0,0.218885]
[1731720550659,0.109434,91379.0,91374.0,0.109439]
[1731720551299,0.16440698,91382.0,91370.0,0.001713]
[1731720551690,0.1246,91377.0,91370.0,0.001713]
[1731720551901,0.109437,91376.0,91370.0,0.001713]
[1731720552105,0.109443,91372.0,91370.0,0.001713]
[1731720552324,0.109443,91371.0,91370.0,0.001713]
[1731720556379,0.218863,91381.0,91370.0,0.001713]
[1731720556380,0.005,91383.0,91371.0,0.218887]
[1731720556646,0.10906255,91382.0,91370.0,0.001713]
[1731720556833,0.005,91384.0,91372.0,0.328327]
[1731720557007,0.005,91384.0,91371.0,0.218887]
[1731720557553,0.0493,91385.0,91383.0,0.109428]
[1731720557700,0.0493,91385.0,91372.0,0.218885]
[1731720557902,0.0493,91385.0,91370.0,0.001713]
[1731720558103,0.0493,91385.0,91371.0,0.16440698]
[1731720558545,0.0493,91385.0,91380.0,0.109433]
[1731720558746,0.0493,91385.0,91371.0,0.16440698]
[1731720558747,0.0493,91385.0,91384.0,0.109428]
[1731720558947,0.0493,91385.0,91383.0,0.109429]
[1731720559376,0.0493,91385.0,91377.0,0.218872]
[1731720559665,0.0493,91385.0,91371.0,0.16440698]
[1731720559894,0.0493,91385.0,91379.0,0.109434]
[1731720560098,0.158727,91385.0,91376.0,0.218873]
[1731720560297,0.0493,91385.0,91371.0,0.16440698]
[1731720560501,0.0493,91385.0,91379.0,0.109433]
[1731720560727,0.21370698,91385.0,91374.0,0.21888]
[1731720560962,0.0493,91385.0,91373.0,0.218883]
[1731720561172,0.0493,91385.0,91370.0,0.001713]
[1731720561383,0.0493,91385.0,91379.0,0.109433]
[1731720562137,0.0493,91385.0,91381.0,0.109431]
[1731720562335,0.0493,91385.0,91379.0,0.109433]
[1731720564010,0.0493,91385.0,91375.0,0.218877]
[1731720564216,0.0493,91385.0,91381.0,0.10943]
[1731720564419,0.0493,91385.0,91371.0,0.218887]
[1731720564810,0.0493,91385.0,91379.0,0.109433]
[1731720565016,0.0493,91385.0,91371.0,0.218887]
[1731720565229,0.0493,91385.0,91380.0,0.109432]
[1731720567173,0.0493,91385.0,91381.0,0.109431]
[1731720568257,0.0493,91385.0,91380.0,0.109433]
[1731720569566,0.0493,91385.0,91379.0,0.0017148]
[1731720569779,0.258933,91380.0,91379.0,0.0017148]
[1731720569977,0.36799555,91380.0,91379.0,0.0017148]
[1731720570777,0.36799555,91380.0,91355.0,0.16440698]
[1731720570778,0.005,91366.0,91355.0,0.16440698]
[1731720570998,0.235961,91356.0,91355.0,0.16440698]
[1731720571430,0.1265,91356.0,91345.0,0.109474]
[1731720571554,0.109466,91352.0,91339.0,0.16612058]
[1731720571769,0.1265,91356.0,91342.0,0.218957]
[1731720571960,0.34502355,91356.0,91340.0,0.218962]
[1731720572181,0.23556255,91356.0,91350.0,0.109468]
[1731720572390,0.109463,91355.0,91350.0,0.109468]
[1731720572612,0.23556255,91356.0,91339.0,0.2206776]
[1731720573302,0.23556255,91356.0,91346.0,0.218946]
[1731720573303,0.109463,91355.0,91346.0,0.218946]
[1731720573510,0.23556255,91356.0,91348.0,0.10947]
[1731720573511,0.109464,91354.0,91348.0,0.10947]
[1731720573922,0.23556255,91356.0,91346.0,0.218946]
[1731720574141,0.34502455,91356.0,91350.0,0.109468]
[1731720576639,0.23556255,91356.0,91350.0,0.109468]
[1731720576850,0.109463,91355.0,91350.0,0.109468]
[1731720578447,0.109463,91355.0,91350.0,0.1111834]
[1731720578651,0.218926,91355.0,91350.0,0.0017154]
[1731720578888,0.109464,91354.0,91350.0,0.0017154]
[1731720579073,0.218932,91353.0,91350.0,0.0017154]
[1731720579275,0.109467,91351.0,91350.0,0.0017154]
[1731720579481,0.109466,91353.0,91350.0,0.0017154]
[1731720579659,0.10906255,91355.0,91350.0,0.0017154]
[1731720579853,0.109466,91352.0,91350.0,0.0017154]
[1731720580055,0.109467,91351.0,91350.0,0.0017154]
[1731720580697,0.21852955,91351.0,91350.0,0.0017154]
[1731720581269,0.24152955,91351.0,91350.0,0.0017154]
[1731720582402,0.28982955,91351.0,91350.0,0.0017154]
[1731720582837,0.33511883,91351.0,91350.0,0.0017154]
[1731720583762,0.42771883,91351.0,91350.0,0.0017154]
[1731720585284,0.42971883,91351.0,91350.0,0.0017154]
[1731720589329,0.52971883,91351.0,91350.0,0.0017154]
[1731720590207,0.371881,91340.0,91339.0,0.0017136]
[1731720590446,0.62985917,91340.0,91339.0,0.0017136]
[1731720596547,0.45294355,91340.0,91339.0,0.0017136]
[1731720597559,0.39432935,91340.0,91339.0,0.0017136]
[1731720597782,0.31282935,91340.0,91339.0,0.0017136]
[1731720597994,0.33582935,91340.0,91339.0,0.0017136]
[1731720600380,0.28744355,91340.0,91339.0,0.0017136]
[1731720600747,0.29244355,91340.0,91339.0,0.0017136]
[1731720606157,0.218929,91354.0,91345.0,0.109474]
[1731720606396,0.16440698,91348.0,91347.0,0.109472]
[1731720606643,0.10906255,91353.0,91339.0,0.0017136]
[1731720606879,0.09779716,91363.0,91339.0,0.0485136]
[1731720607106,0.21851655,91362.0,91342.0,0.218957]
[1731720607334,0.21851655,91362.0,91356.0,0.10946]
[1731720607335,0.10906255,91362.0,91356.0,0.10946]
[1731720607670,0.109455,91361.0,91351.0,0.109467]
[1731720607677,0.10906255,91362.0,91340.0,0.06040118]
[1731720607878,0.32797655,91360.0,91350.0,0.109468]
[1731720608149,0.109461,91357.0,91350.0,0.109468]
[1731720608353,0.10906255,91356.0,91350.0,0.109468]
[1731720609003,0.1490215,91351.0,91340.0,0.06040118]
[1731720609193,0.109466,91353.0,91342.0,0.218957]
[1731720609499,0.109463,91355.0,91350.0,0.109468]
[1731720609719,0.21852555,91355.0,91350.0,0.109468]
[1731720610955,0.109465,91354.0,91349.0,0.10947]
[1731720612949,0.10906255,91355.0,91350.0,0.109468]
[1731720613157,0.10906255,91355.0,91342.0,0.547392]
[1731720613349,0.10906255,91355.0,91342.0,0.109478]
[1731720613552,0.21852555,91355.0,91350.0,0.109469]
[1731720613758,0.10906255,91355.0,91347.0,0.218943]
[1731720613976,0.109467,91352.0,91341.0,0.218959]
[1731720614180,0.109467,91352.0,91339.0,0.0017136]
[1731720614181,0.109481,91340.0,91339.0,0.0017136]
[1731720614392,0.21854355,91340.0,91339.0,0.0017136]
[1731720614607,0.24154355,91340.0,91339.0,0.0017136]
[1731720616402,0.52206505,91340.0,91339.0,0.0017136]
[1731720618326,0.36804355,91340.0,91339.0,0.0017136]
[1731720618501,0.21895,91345.0,91339.0,0.0017136]
[1731720618673,0.10906255,91345.0,91339.0,0.0017136]
[1731720618874,0.21853755,91345.0,91339.0,0.0017136]
[1731720619083,0.21853755,91345.0,91340.0,0.10948]
[1731720619277,0.21853755,91345.0,91339.0,0.0017136]
[1731720619278,0.10906255,91345.0,91339.0,0.0017136]
[1731720619536,0.0008579,91354.0,91339.0,0.0017136]
[1731720619733,0.109468,91351.0,91346.0,0.109473]
[1731720620330,0.10906255,91353.0,91341.0,0.218958]
[1731720620504,0.11406255,91353.0,91339.0,0.0017136]
[1731720620711,0.218935,91351.0,91339.0,0.0017136]
[1731720620953,0.109472,91348.0,91343.0,0.109476]
[1731720621160,0.109472,91348.0,91339.0,0.0017136]
[1731720621161,0.109469,91350.0,91344.0,0.109476]
[1731720621366,0.10947,91349.0,91344.0,0.109476]
[1731720622183,0.11406255,91353.0,91339.0,0.0017136]
[1731720622388,0.109475,91345.0,91339.0,0.1111946]
[1731720622608,0.218945,91347.0,91339.0,0.0017136]
[1731720622609,0.109476,91344.0,91339.0,0.0017136]
[1731720622794,0.109476,91344.0,91339.0,0.1111946]
[1731720623040,0.218939,91350.0,91339.0,0.0017136]
[1731720623256,0.109475,91345.0,91339.0,0.0017136]
[1731720623458,0.109475,91345.0,91339.0,0.1111956]
[1731720623783,0.109475,91345.0,91340.0,0.109481]
[1731720623982,0.109481,91340.0,91339.0,0.0017136]
[1731720624195,0.005,91353.0,91339.0,0.0017136]
[1731720624401,0.10906255,91352.0,91339.0,0.1111946]
[1731720624598,0.109481,91340.0,91339.0,0.0017136]
[1731720624820,0.21854355,91340.0,91339.0,0.0017136]
[1731720625225,0.24154355,91340.0,91339.0,0.0017136]
[1731720625623,0.24654355,91340.0,91339.0,0.0017136]
[1731720626232,0.24154355,91340.0,91339.0,0.0017136]
[1731720626440,0.24654355,91340.0,91339.0,0.0017136]
[1731720628983,0.29066031,91340.0,91339.0,0.0017136]
[1731720630524,0.29266031,91340.0,91339.0,0.0017136]
[1731720630649,0.29266031,91340.0,91339.0,0.0016136]
[1731720631575,0.29766031,91340.0,91339.0,0.0016136]
[1731720632006,0.44276031,91340.0,91339.0,0.0016136]
[1731720632227,0.52196031,91340.0,91339.0,0.0016136]
[1731720635561,0.52196031,91340.0,91313.0,0.0017142]
[1731720635807,0.62687205,91334.0,91313.0,0.0017142]
[1731720636061,0.132512,91314.0,91313.0,0.0017142]
[1731720636278,0.39059605,91314.0,91313.0,0.0017142]
[1731720636488,0.39559605,91314.0,91313.0,0.0017142]
[1731720636701,0.50259605,91314.0,91313.0,0.0017142]
[1731720638897,0.50059605,91314.0,91313.0,0.0017142]
[1731720639070,0.50259605,91314.0,91313.0,0.0017142]
[1731720639331,0.54675057,91314.0,91313.0,0.0017142]
[1731720639548,0.69577207,91314.0,91313.0,0.0017142]
[1731720639779,0.44675057,91314.0,91313.0,0.0017142]
[1731720640200,0.54675057,91314.0,91313.0,0.0017142]
[1731720640613,0.67105057,91314.0,91313.0,0.0017142]
[1731720643782,0.82007207,91314.0,91313.0,0.0017142]
[1731720644209,1.46833462,91314.0,91313.0,0.0017142]
[1731720644586,1.35927207,91314.0,91313.0,0.0017142]
[1731720645407,0.012,91300.0,91299.0,0.0010144]
[1731720645691,0.37961305,91300.0,91299.0,0.0010144]
[1731720645830,0.45251305,91300.0,91299.0,0.0010144]
[1731720646700,0.53511305,91300.0,91299.0,0.0010144]
[1731720649548,0.57871408,91300.0,91299.0,0.0010144]
[1731720649962,0.67871408,91300.0,91299.0,0.0010144]
[1731720650169,0.68399988,91300.0,91299.0,0.0010144]
[1731720650376,0.69084294,91300.0,91299.0,0.0010144]
[1731720651438,0.83986444,91300.0,91299.0,0.0010144]
[1731720651646,0.69084294,91300.0,91299.0,0.0010144]
[1731720652095,0.69084294,91300.0,91294.0,0.0017122]
[1731720652096,0.012,91295.0,91294.0,0.0017122]
[1731720652299,1.03214061,91295.0,91294.0,0.0017122]
[1731720652534,1.0404008,91295.0,91294.0,0.0017122]
[1731720652983,1.03214061,91295.0,91294.0,0.0017122]
[1731720653243,1.02529755,91295.0,91294.0,0.0017122]
[1731720655280,1.03214161,91295.0,91294.0,0.0017122]
[1731720656006,1.0321416,91295.0,91294.0,0.0017122]
[1731720657303,1.02529755,91295.0,91294.0,0.0017122]
[1731720658289,1.03214159,91295.0,91294.0,0.0017122]
[1731720658996,1.03214159,91295.0,91270.0,0.24240698]
[1731720658997,0.65510659,91295.0,91287.0,0.07840288]
[1731720659212,0.00684404,91294.0,91287.0,0.07840288]
[1731720659428,0.64826255,91295.0,91287.0,0.07840288]
[1731720659429,0.10906255,91295.0,91291.0,0.109539]
[1731720659642,0.219053,91303.0,91287.0,0.07840288]
[1731720659643,0.109529,91300.0,91287.0,0.07840288]
[1731720659861,0.10906255,91299.0,91287.0,0.07840288]
[1731720660084,0.16440698,91292.0,91287.0,0.07840288]
[1731720660296,0.2585625,91290.0,91287.0,0.07840288]
[1731720660511,0.10906255,91291.0,91287.0,0.07840288]
[1731720660512,0.10906255,91289.0,91287.0,0.07840288]
[1731720660771,0.21860555,91289.0,91287.0,0.07840288]
[1731720661197,0.10906255,91289.0,91287.0,0.07840288]
[1731720662080,0.10906255,91289.0,91288.0,0.109543]
[1731720662292,0.109529,91300.0,91290.0,0.219079]
[1731720662504,0.219051,91303.0,91288.0,0.219084]
[1731720662505,0.10906255,91298.0,91288.0,0.219084]
[1731720662716,0.10906255,91298.0,91293.0,0.109536]
[1731720662948,0.10906255,91298.0,91290.0,0.219081]
[1731720663166,0.10906255,91298.0,91291.0,0.109539]
[1731720663385,0.10906255,91298.0,91287.0,0.07840288]
[1731720663598,0.10906255,91298.0,91290.0,0.109539]
[1731720663815,0.10906255,91298.0,91287.0,0.07840288]
[1731720664027,0.10906255,91298.0,91289.0,0.219084]
[1731720664242,0.10906255,91298.0,91288.0,0.219085]
[1731720664462,0.10906255,91298.0,91297.0,0.109532]
[1731720664723,0.10906255,91298.0,91287.0,0.07840288]
[1731720664724,0.0017166,91313.0,91312.0,0.109514]
[1731720672263,0.0017166,91313.0,91312.0,0.188614]
[1731720673394,0.0017166,91313.0,91312.0,0.23255095]
[1731720674472,0.0017166,91313.0,91308.0,0.267136]
[1731720674473,0.0017166,91313.0,91308.0,0.219036]
[1731720674677,0.0017166,91313.0,91306.0,0.0791]
[1731720674881,0.0017166,91313.0,91311.0,0.109515]
[1731720675083,0.0017166,91313.0,91307.0,0.219041]
[1731720675240,0.0017166,91313.0,91312.0,0.109514]
[1731720675394,0.0017166,91313.0,91299.0,0.125]
[1731720675395,0.16440698,91312.0,91289.0,0.0791]
[1731720675598,0.109539,91292.0,91287.0,0.00040288]
[1731720675805,0.219041,91307.0,91287.0,0.00040288]
[1731720675806,0.023,91306.0,91287.0,0.00040288]
[1731720676086,0.16440698,91302.0,91287.0,0.00040288]
[1731720676292,0.219061,91299.0,91287.0,0.00040288]
[1731720676498,0.109537,91293.0,91287.0,0.10994588]
[1731720677084,0.109537,91293.0,91288.0,0.109543]
[1731720677543,0.109534,91296.0,91289.0,0.109542]
[1731720677686,0.10906255,91298.0,91287.0,0.00040288]
[1731720677918,0.109536,91294.0,91288.0,0.109542]
[1731720678331,0.16440698,91302.0,91287.0,0.00040288]
[1731720678332,0.109543,91288.0,91287.0,0.00040288]
[1731720681084,0.36762705,91288.0,91287.0,0.00040288]
[1731720681315,0.39062705,91288.0,91287.0,0.00040288]
[1731720682348,0.24160555,91288.0,91287.0,0.00040288]
[1731720682766,0.109559,91275.0,91269.0,0.109565]
[1731720683421,0.109556,91277.0,91270.0,0.109564]
[1731720683716,0.21861855,91277.0,91270.0,0.109564]
[1731720683900,0.10906255,91277.0,91267.0,0.219135]
[1731720684114,0.10906255,91277.0,91263.0,0.02147734]
[1731720684374,0.16440698,91286.0,91263.0,0.02147734]
[1731720684544,0.27346953,91286.0,91280.0,0.109551]
[1731720684746,0.27346953,91286.0,91281.0,0.109551]
[1731720685437,0.10906255,91286.0,91263.0,0.02647734]
[1731720685651,0.10906255,91286.0,91282.0,0.109549]
[1731720685832,0.16440698,91285.0,91282.0,0.109549]
[1731720686041,0.10906255,91286.0,91263.0,0.02647734]
[1731720686280,0.10906255,91286.0,91283.0,0.109549]
[1731720686502,0.16440698,91285.0,91283.0,0.109549]
[1731720686711,0.0017144,91293.0,91268.0,0.1490215]
[1731720686916,0.16440698,91290.0,91289.0,0.109541]
[1731720687150,0.27346953,91290.0,91269.0,0.0782]
[1731720687379,0.10906255,91289.0,91283.0,0.109548]
[1731720687627,0.10906255,91289.0,91269.0,0.0782]
[1731720687628,0.10906255,91289.0,91270.0,0.21913]
[1731720687847,0.109545,91287.0,91280.0,0.109551]
[1731720688070,0.109545,91287.0,91282.0,0.10955]
[1731720688288,0.109543,91288.0,91282.0,0.10955]
[1731720688489,0.109543,91288.0,91278.0,0.219109]
[1731720688704,0.109543,91288.0,91269.0,0.0782]
[1731720688705,0.219087,91288.0,91275.0,0.219117]
[1731720689154,0.109546,91286.0,91275.0,0.219117]
[1731720689355,0.109546,91286.0,91280.0,0.109552]
[1731720689618,0.10906255,91289.0,91270.0,0.0449152]
[1731720689848,0.10906255,91289.0,91263.0,0.02147734]
[1731720689849,0.1720215,91282.0,91263.0,0.02147734]
[1731720690059,0.109554,91279.0,91263.0,0.18588432]
[1731720690275,0.10906255,91279.0,91271.0,0.219127]
[1731720690495,0.10906255,91279.0,91272.0,0.219125]
[1731720690709,0.10906255,91279.0,91270.0,0.109564]
[1731720690710,0.16440698,91278.0,91270.0,0.109564]
[1731720690938,0.10906255,91279.0,91263.0,0.02147734]
[1731720690939,0.10906255,91279.0,91265.0,0.219142]
[1731720691142,0.21861655,91279.0,91273.0,0.109561]
[1731720691356,0.10906255,91279.0,91270.0,0.219128]
[1731720691565,0.10906255,91279.0,91264.0,0.219144]